fUST/lending_fUST_20260628
["ID","MTS","AMOUNT","RATE_DAILY","PERIOD"]
[426578184,1782625126000,400.0,0.00028059,30]
[426578183,1782625126000,400.0,0.00029168,30]
[426578279,1782625831000,-547.35603744,0.000118,5]
[426578349,1782625838000,-658.30686541,0.000118,5]
[426578348,1782625838000,-416.07294855,0.000118,5]
[426578395,1782626067000,165.43431233,0.00029168,120]
[426578397,1782626067000,447.4776884,0.00029168,120]
[426578396,1782626067000,447.4776884,0.00029168,120]
[426578400,1782626068000,447.4776884,0.00029168,120]
[426578399,1782626068000,447.4776884,0.00029168,120]
[426578398,1782626068000,447.4776884,0.00029168,120]
[426578403,1782626069000,447.4776884,0.00029168,120]
[426578402,1782626069000,447.4776884,0.00029168,120]
[426578401,1782626069000,447.4776884,0.00029168,120]
[426578406,1782626070000,447.4776884,0.00029168,120]
[426578405,1782626070000,447.4776884,0.00029168,120]
[426578404,1782626070000,447.4776884,0.00029168,120]
[426578409,1782626071000,447.4776884,0.00029168,120]
[426578408,1782626071000,447.4776884,0.00029168,120]
[426578407,1782626071000,447.4776884,0.00029168,120]
[426578414,1782626187000,165.43431232,0.00029168,120]
[426578415,1782626187000,223.73884417,0.00029168,120]
[426578416,1782626187000,223.73884417,0.00029168,120]
[426578422,1782626226000,-464.34077475,0.0001,2]
[426578423,1782626227000,-490.97128263,0.0001,2]
[426578424,1782626228000,-137.66739774,0.0001,2]
[426578425,1782626228000,-216.7754571,0.00010438,2]
[426578427,1782626258000,5000.0,0.00011,3]
[426578450,1782626646000,160.0,0.00029168,30]
[426578452,1782626668000,2836.02309631,0.00011,3]
[426578713,1782627032000,-309.23,9.9e-05,2]
[426578750,1782627033000,-601.55347722,0.0001,2]
[426578745,1782627033000,-500.0,9.9e-05,2]
[426578746,1782627033000,-500.0,9.9e-05,2]
[426578747,1782627033000,-303.44215899,9.9e-05,2]
[426578749,1782627033000,-177.0447202,0.0001,2]
[426578748,1782627033000,-300.0,9.999e-05,2]
[426578753,1782627033000,-305.63,0.00010291,2]
[426578754,1782627033000,-309.23,0.00010395,2]
[426578757,1782627033000,-921.08332184,0.00010438,2]
[426578756,1782627033000,-730.08310964,0.00010438,2]
[426578755,1782627033000,-305.64,0.00010395,2]
[426578758,1782627033000,-1065.59507258,0.00010438,2]
[426578752,1782627033000,-1670.27921969,0.0001,2]
[426578751,1782627033000,-3945.9557216,0.0001,2]
[426578828,1782627040000,-753.1498694,0.00010438,2]
[426578838,1782627040000,-14.49579871,0.00010438,2]
[426578836,1782627040000,-365.88522209,0.00010438,2]
[426579156,1782627043000,-287.19471182,0.00011682,7]
[426579148,1782627043000,-92.36874419,0.00010438,2]
[426579152,1782627043000,-323.64,0.00010987,2]
[426579158,1782627043000,-287.19471182,0.00011916,7]
[426579160,1782627043000,-77.26584179,0.00012266,7]
[426579150,1782627043000,-302.03,0.0001096,2]
[426579195,1782627043000,-166.77815123,0.00012617,7]
[426579200,1782627043000,-287.19471183,0.00013084,7]
[426579199,1782627043000,-120.41656059,0.00012617,7]
[426579154,1782627043000,-302.03,0.00011098,2]
[426579192,1782627043000,-209.92887003,0.00012266,7]
[426579194,1782627043000,-1309.75200323,0.000125,2]
[426579201,1782627043000,-74.880587,0.00013365,14]
[426579973,1782627079000,1518.37,0.0003013,30]
[426580068,1782628227000,3327.0334273,0.00011,3]
[426580086,1782628232000,-1083.49849991,0.0001095,2]
[426580088,1782628232000,-688.47807093,0.00011297,3]
[426580095,1782628232000,-4311.52192907,0.00011297,3]
[426580115,1782628232000,-81.71256498,0.00016931,2]
[426580108,1782628232000,-418.3362636,0.0001461,2]
[426580097,1782628232000,-172.29324359,0.00013365,14]
[426580106,1782628232000,-231.56852915,0.00014353,2]
[426580114,1782628232000,-354.54976337,0.00015984,2]
[426580112,1782628232000,-6.9142376,0.00015984,2]
[426580104,1782628232000,-224.93497228,0.00014353,2]
[426580102,1782628232000,-196.81810075,0.00014294,2]
[426580099,1782628232000,-202.62246301,0.00013722,2]
[426580110,1782628232000,-351.1094333,0.00015984,2]
[426580591,1782628247000,-74.28743502,0.00016931,2]
[426580593,1782628247000,-111.52803134,0.00018,2]
[426580592,1782628247000,-201.08366467,0.00017786,2]
[426580602,1782628465000,160.0,0.00029167,30]
[426580614,1782628553000,404.0814205,0.00029066,120]
[426580799,1782629396000,945.87960514,0.0003013,30]
[426581560,1782629443000,-157.019,0.00020431,2]
[426581554,1782629443000,-180.26440598,0.000194,2]
[426581558,1782629443000,-2215.0,0.00020079,2]
[426581549,1782629443000,-365.7880692,0.00016022,2]
[426581552,1782629443000,-2603.49,0.00019,2]
[426581547,1782629443000,-365.7880692,0.00011178,2]
[426581551,1782629443000,-434.86841891,0.00018,2]
[426581556,1782629443000,-180.26440598,0.00019979,2]
[426581594,1782629444000,-158.0,0.00029,2]
[426581578,1782629444000,-900.308805,0.00027529,2]
[426581576,1782629444000,-500.0,0.00027529,2]
[426581586,1782629444000,-158.0,0.00028,2]
[426581582,1782629444000,-160.0,0.00027589,2]
[426581580,1782629444000,-280.0,0.00027589,2]
[426581598,1782629444000,-200.0,0.000291,2]
[426581584,1782629444000,-240.0,0.00027589,2]
[426581596,1782629444000,-2215.0,0.00029079,2]
[426581602,1782629444000,-500.0,0.00029165,2]
[426581603,1782629444000,-227.37408234,0.00029165,2]
[426581600,1782629444000,-509.27025971,0.00029165,2]
[426581592,1782629444000,-2522.45246582,0.00029,2]
[426581590,1782629444000,-900.308805,0.00028641,2]
[426581574,1782629444000,-387.97492346,0.00027529,2]
[426581565,1782629444000,-4000.0,0.00021,2]
[426581566,1782629444000,-180.423984,0.00021918,2]
[426581569,1782629444000,-1594.35796578,0.0002465,2]
[426581567,1782629444000,-2215.0,0.00023079,2]
[426581568,1782629444000,-280.0,0.00024228,2]
[426581564,1782629444000,-281.60206798,0.00021,2]
[426581570,1782629444000,-365.7880692,0.00025709,2]
[426581571,1782629444000,-2215.0,0.00026079,2]
[426581572,1782629444000,-900.308805,0.00026417,2]
[426581561,1782629444000,-269.14,0.00020681,2]
[426581563,1782629444000,-365.7880692,0.00020866,2]
[426581588,1782629444000,-679.08724949,0.00028296,2]
[426581605,1782629444000,-500.0,0.00029165,2]
[426581608,1782629444000,-500.0,0.00029165,2]
[426581610,1782629444000,-640.9846183,0.00029165,2]
[426581648,1782629444000,-2873.0284698,0.00029167,2]
[426581657,1782629444000,-24122.90548485,0.00029699,2]
[426581655,1782629444000,-871.88,0.00029689,3]
[426581653,1782629444000,-290.61,0.00029689,3]
[426581651,1782629444000,-216.84177442,0.00029528,2]
[426581649,1782629444000,-163.7908664,0.00029167,2]
[426581631,1782629444000,-3460.0,0.00029167,2]
[426581626,1782629444000,-3460.0,0.00029167,2]
[426581630,1782629444000,-3460.0,0.00029167,2]
[426581646,1782629444000,-3460.0,0.00029167,2]
[426581633,1782629444000,-3460.0,0.00029167,2]
[426581628,1782629444000,-3460.0,0.00029167,2]
[426581607,1782629444000,-500.0,0.00029165,2]
[426581644,1782629444000,-3460.0,0.00029167,2]
[426581640,1782629444000,-3460.0,0.00029167,2]
[426581639,1782629444000,-3460.0,0.00029167,2]
[426581635,1782629444000,-3460.0,0.00029167,2]
[426581637,1782629444000,-3460.0,0.00029167,2]
[426581624,1782629444000,-3460.0,0.00029167,2]
[426581616,1782629444000,-500.0,0.00029165,2]
[426581612,1782629444000,-500.0,0.00029165,2]
[426581622,1782629444000,-1598.82431026,0.00029167,2]
[426581614,1782629444000,-500.0,0.00029165,2]
[426581618,1782629444000,-9105.55375066,0.00029166,2]
[426581619,1782629444000,-500.0,0.00029166,2]
[426581621,1782629444000,-500.0,0.00029166,2]
[426581642,1782629444000,-3460.0,0.00029167,2]
[426582020,1782630097000,162.0,0.00029,30]
[426582024,1782630181000,200.0,0.00030137,120]
[426582025,1782630193000,200.0,0.00029166,120]
[426582029,1782630221000,499.93601046,0.00029166,30]
[426582033,1782630233000,172.03297089,0.0001,23]
[426582037,1782630284000,160.0,0.00029166,30]
[426582936,1782630643000,-6431.55452627,0.000118,5]
[426583027,1782630647000,-522.74906441,0.000118,5]
[426583024,1782630647000,-654.98914593,0.000118,5]
[426583030,1782630747000,219.902346,0.00029166,120]
[426583038,1782630989000,-28035.8337726,0.000118,5]
[426583041,1782630989000,-260.67266243,0.0001239,7]
[426583040,1782630989000,-260.67266243,0.00012036,7]
[426583043,1782630989000,-260.67266243,0.00012744,7]
[426583044,1782630989000,-260.67266245,0.00013216,7]
[426583042,1782630989000,-433.46,0.0001239,2]
[426583039,1782630989000,-260.67266243,0.000118,7]
[426583045,1782631034000,-227.34291523,0.000137,2]
[426583047,1782631084000,-121.85708477,0.000137,2]
[426583053,1782631084000,-500.0,0.00018899,2]
[426583052,1782631084000,-500.0,0.00018899,2]
[426583051,1782631084000,-500.0,0.00018899,2]
[426583050,1782631084000,-159.16185764,0.00018899,2]
[426583048,1782631084000,-4740.23473184,0.000188,2]
[426583049,1782631084000,-500.0,0.00018899,2]
[426583055,1782631085000,-42430.05709294,0.000189,2]
[426583054,1782631085000,-548.68923281,0.00018899,2]
[426583063,1782631119000,213.78,0.00019,30]
[426583725,1782631840000,-612.13019888,0.0001879,2]
[426583789,1782631841000,-370.91505492,0.0001879,2]
[426584020,1782631843000,-388.39333647,0.0001879,2]
[426584090,1782631846000,-2323.36608266,0.0001879,2]
[426584117,1782632104000,160.0,0.00029161,30]
[426584281,1782633031000,-3066.68421349,0.00017265,2]
[426584312,1782633032000,-9741.4830061,0.00017682,2]
[426584313,1782633032000,-1253.95000694,0.00017732,2]
[426584311,1782633032000,-10985.00132675,0.00017265,2]
[426584310,1782633032000,-7355.44138246,0.00017265,2]
[426584336,1782633038000,-2369.50881306,0.00017732,2]
[426584339,1782633038000,-1048.45,0.0001859,3]
[426584340,1782633038000,-800.13,0.0001859,3]
[426584342,1782633038000,-7699.42677967,0.000186,2]
[426584341,1782633038000,-5038.65226884,0.000186,2]
[426584338,1782633038000,-281.7393415,0.0001819,2]
[426584337,1782633038000,-3896.07087751,0.0001809,2]
[426584378,1782633452000,187.81217321,0.00029162,31]
[426584382,1782633502000,401250.67468392,0.00021931,120]
[426584445,1782633923000,160.0,0.00029161,30]
[426584564,1782634232000,-237.37601636,0.00015,2]
[426584565,1782634232000,-324.8813207,0.00017846,2]
[426584567,1782634232000,-174.51382518,0.00018689,2]
[426584566,1782634232000,-175.1186793,0.00017846,2]
[426584655,1782634238000,-356.47441127,0.00019,2]
[426584653,1782634238000,-473.0,0.0001899,5]
[426584651,1782634238000,-406.51975953,0.0001879,7]
[426584650,1782634238000,-163.64843063,0.000187,2]
[426584648,1782634238000,-278.51471171,0.00018689,2]
[426584970,1782634241000,-407.74936112,0.00019,2]
[426585427,1782634973000,186.98110495,0.0001,23]
[426585428,1782635033000,185.78843611,0.0001,23]
[426585429,1782635093000,179.37095205,0.0001,2]
[426585432,1782635153000,173.86746617,0.0001,2]
[426585447,1782635214000,172.03297086,0.0001,23]
[426585456,1782635273000,172.03297087,0.0001,23]
[426585545,1782635432000,-3003.8081679,0.00018842,2]
[426585546,1782635432000,-80.81860857,0.00018899,2]
[426585543,1782635432000,-395.73132879,0.0001879,2]
[426585541,1782635432000,-199.71306723,0.0001879,2]
[426585835,1782635447000,-500.0,0.00018999,2]
[426585833,1782635447000,-130.49618184,0.00018899,2]
[426585837,1782635447000,-114.68222306,0.00018999,2]
[426587006,1782635738000,2724.0,0.00030136,120]
[426587007,1782635742000,160.0,0.00029161,30]
[426587180,1782636366000,160.0,0.00029162,30]
[426587279,1782636632000,-300.0,0.00017531,2]
[426587275,1782636632000,-3902.79781194,0.00017009,2]
[426587281,1782636632000,-333.42395282,0.00017532,2]
[426587285,1782636632000,-710.23931993,0.00017532,2]
[426587277,1782636632000,-1221.54588446,0.00017009,2]
[426587582,1782636639000,-24117.40755259,0.00019,2]
[426587583,1782636639000,-2215.0,0.00019065,2]
[426587585,1782636639000,-357.0,0.00019137,2]
[426587584,1782636639000,-356.27384673,0.00019136,2]
[426587580,1782636639000,-228.24350541,0.00018909,2]
[426587579,1782636639000,-3409.06201783,0.00018808,2]
[426587578,1782636639000,-27122.2224997,0.00018205,2]
[426587581,1782636639000,-614.10080404,0.00018999,2]
[426587577,1782636639000,-7470.31183933,0.00018204,2]
[426587587,1782636639000,-168.57,0.00019184,2]
[426587575,1782636639000,-284.08246297,0.00018204,2]
[426587573,1782636639000,-500.0,0.00018204,2]
[426587574,1782636639000,-500.0,0.00018204,2]
[426587572,1782636639000,-230.02962863,0.00018204,2]
[426587571,1782636639000,-500.0,0.00018204,2]
[426587567,1782636639000,-10250.09523805,0.00017532,2]
[426587570,1782636639000,-202.33578056,0.00018204,2]
[426587568,1782636639000,-266.588203,0.00017532,2]
[426587576,1782636639000,-539.24467276,0.00018204,2]
[426587589,1782636639000,-1027.47993,0.00019628,2]
[426587569,1782636639000,-198.200735,0.00017708,2]
[426587592,1782636639000,-157.0343379,0.0002,2]
[426587596,1782636639000,-406.51975954,0.00021045,7]
[426587607,1782636639000,-500.0,0.00023818,2]
[426587600,1782636639000,-842.55,0.00022065,2]
[426587606,1782636639000,-151.5,0.00023818,2]
[426587602,1782636639000,-272.74554212,0.00022475,2]
[426587603,1782636639000,-240.11,0.0002271,2]
[426587604,1782636639000,-1027.47993,0.00022932,2]
[426587605,1782636639000,-1027.47993,0.00023759,2]
[426587599,1782636639000,-178.47097286,0.00021995,2]
[426587608,1782636639000,-290.15528822,0.00023818,2]
[426587590,1782636639000,-406.51975953,0.0001973,7]
[426587593,1782636639000,-406.51975953,0.00020293,7]
[426587598,1782636639000,-350.58282516,0.00021516,2]
[426587586,1782636639000,-406.51975953,0.00019166,7]
[426587594,1782636639000,-1027.47993,0.00020454,2]
[426587597,1782636639000,-1027.47993,0.0002128,2]
[426587591,1782636639000,-347.67023365,0.00019799,2]
[426587588,1782636639000,-155.735686,0.00019568,2]
[426587595,1782636639000,-500.0,0.00021,2]
[426587601,1782636639000,-1027.47993,0.00022106,2]
[426587667,1782636647000,-241.90642685,0.00023818,2]
[426587665,1782636647000,-3409.06201779,0.00021821,2]
[426587666,1782636647000,-209.84471178,0.00023818,2]
[426587699,1782637025000,24043.20929546,0.0002904,120]
[426587703,1782637102000,160.0,0.00029162,30]
[426587704,1782637119000,160.0,0.00029162,30]
[426587711,1782637368000,248.3189718,0.000279,120]
[426587741,1782637561000,160.0,0.00029165,30]
[426587744,1782637564000,770.56567894,0.00028565,120]
[426587886,1782637831000,-3845.35,0.00015287,2]
[426587888,1782637831000,-380.83,0.00015287,2]
[426587884,1782637831000,-621.82,0.00015287,2]
[426587897,1782637831000,-172.00571797,0.00017009,7]
[426587890,1782637831000,-847.36097908,0.00015441,2]
[426587894,1782637831000,-1069.4545471,0.00015441,2]
[426587896,1782637831000,-230.531,0.00015914,2]
[426587907,1782637831000,-3612.58271201,0.00020297,2]
[426587901,1782637831000,-1398.5216797,0.00018843,2]
[426587911,1782637831000,-72.34370512,0.00022547,2]
[426587914,1782637831000,-373.65629488,0.00022547,2]
[426587917,1782637831000,-559.48968185,0.00022888,2]
[426587906,1782637831000,-446.0,0.00019547,2]
[426587900,1782637831000,-1394.0325658,0.00018843,2]
[426587903,1782637831000,-186.0,0.00019547,2]
[426587921,1782637831000,-308.1879155,0.00022888,2]
[426587909,1782637831000,-186.0,0.00022547,2]
[426588008,1782637838000,-526.35496845,0.00022888,2]
[426588022,1782637838000,-178.0,0.00024,7]
[426588024,1782637838000,-207.9549562,0.00024188,2]
[426588020,1782637838000,-156.88644244,0.0002317,2]
[426588013,1782637838000,-109.70176056,0.0002317,2]
[426588011,1782637838000,-1380.7556791,0.00023128,2]
[426588028,1782637838000,-30.00729528,0.00024738,2]
[426588026,1782637838000,-198.200735,0.0002425,2]
[426588068,1782637846000,-500.0,0.0002487,2]
[426588067,1782637846000,-717.04212962,0.00024738,2]
[426588069,1782637846000,-238.528431,0.0002487,2]
[426588070,1782637846000,-238.528431,0.0002487,2]
[426588071,1782637846000,-238.528431,0.0002487,2]
[426588072,1782637846000,-238.528431,0.0002487,2]
[426588073,1782637846000,-1539.43306097,0.00024871,2]
[426588075,1782637846000,-229.93,0.00025081,3]
[426588079,1782637846000,-500.0,0.00025357,2]
[426588077,1782637846000,-620.31951611,0.00025357,2]
[426588080,1782637846000,-177.18166328,0.00025357,2]
[426588081,1782637846000,-178.0,0.00025358,7]
[426588078,1782637846000,-159.60890615,0.00025357,2]
[426588074,1782637846000,-1000.0,0.00025,2]
[426588083,1782637846000,-186.0,0.00025547,2]
[426588082,1782637846000,-158.2236854,0.00025425,16]
[426588085,1782637846000,-238.528431,0.00025547,2]
[426588088,1782637846000,-238.528431,0.00025547,2]
[426588090,1782637846000,-2211.92738459,0.00025999,2]
[426588089,1782637846000,-500.0,0.00025998,2]
[426588084,1782637846000,-446.0,0.00025547,2]
[426588087,1782637846000,-238.528431,0.00025547,2]
[426588086,1782637846000,-238.528431,0.00025547,2]
[426588076,1782637846000,-166.63764503,0.00025357,2]
[426588099,1782638185000,160.0,0.00029165,30]
[426588749,1782639046000,-332.52,0.0001912,2]
[426588778,1782639047000,-500.0,0.00026099,2]
[426588784,1782639047000,-500.0,0.00026099,2]
[426588780,1782639047000,-500.0,0.00026099,2]
[426588782,1782639047000,-500.0,0.00026099,2]
[426588789,1782639047000,-500.0,0.00026099,2]
[426588788,1782639047000,-500.0,0.00026099,2]
[426588777,1782639047000,-500.0,0.00026099,2]
[426588783,1782639047000,-500.0,0.00026099,2]
[426588786,1782639047000,-500.0,0.00026099,2]
[426588792,1782639047000,-500.0,0.00026099,2]
[426588798,1782639047000,-500.0,0.00026099,2]
[426588796,1782639047000,-242.77475844,0.00026099,2]
[426588800,1782639047000,-500.0,0.00026099,2]
[426588793,1782639047000,-500.0,0.00026099,2]
[426588791,1782639047000,-500.0,0.00026099,2]
[426588781,1782639047000,-500.0,0.00026099,2]
[426588790,1782639047000,-314.30869238,0.00026099,2]
[426588797,1782639047000,-500.0,0.00026099,2]
[426588794,1782639047000,-500.0,0.00026099,2]
[426588799,1782639047000,-500.0,0.00026099,2]
[426588801,1782639047000,-500.0,0.00026099,2]
[426588795,1782639047000,-500.0,0.00026099,2]
[426588779,1782639047000,-500.0,0.00026099,2]
[426588768,1782639047000,-179.0,0.00025,7]
[426588776,1782639047000,-500.0,0.00026099,2]
[426588812,1782639047000,-151.0,0.00026099,2]
[426588756,1782639047000,-446.0,0.00020126,2]
[426588759,1782639047000,-826.9667912,0.00021284,2]
[426588755,1782639047000,-332.52,0.00020126,2]
[426588757,1782639047000,-186.0,0.00020126,2]
[426588761,1782639047000,-446.0,0.00023126,2]
[426588758,1782639047000,-332.52,0.00021132,2]
[426588760,1782639047000,-2788.0651318,0.00021284,2]
[426588762,1782639047000,-186.0,0.00023126,2]
[426588763,1782639047000,-826.9667912,0.00023886,2]
[426588764,1782639047000,-6353.7043944,0.00024358,2]
[426588770,1782639047000,-248.27193917,0.00025493,2]
[426588765,1782639047000,-965.61491768,0.0002487,2]
[426588769,1782639047000,-250.90147616,0.00025263,2]
[426588773,1782639047000,-114.54134325,0.00025999,2]
[426588775,1782639047000,-500.0,0.00026099,2]
[426588766,1782639047000,-359.97310558,0.0002487,2]
[426588774,1782639047000,-2971.42833287,0.00026096,2]
[426588772,1782639047000,-261.13287135,0.00025928,2]
[426588767,1782639047000,-301.75466177,0.00024897,2]
[426588771,1782639047000,-180.0,0.0002589,7]
[426588787,1782639047000,-500.0,0.00026099,2]
[426588802,1782639047000,-500.0,0.00026099,2]
[426588785,1782639047000,-500.0,0.00026099,2]
[426588806,1782639047000,-644.38775684,0.00026099,2]
[426588829,1782639047000,-295.341181,0.00026204,2]
[426588835,1782639047000,-500.0,0.00027899,2]
[426588830,1782639047000,-1508.77330887,0.00026277,2]
[426588833,1782639047000,-500.0,0.00027678,2]
[426588831,1782639047000,-826.9667912,0.00026488,2]
[426588837,1782639047000,-500.0,0.00027899,2]
[426588840,1782639047000,-1200.7553,0.000279,5]
[426588841,1782639047000,-177.54537995,0.000279,3]
[426588839,1782639047000,-1820.4057,0.000279,2]
[426588847,1782639047000,-161.168903,0.00028,2]
[426588845,1782639047000,-151.0,0.000279,7]
[426588844,1782639047000,-151.0,0.000279,7]
[426588838,1782639047000,-248.85772408,0.00027899,2]
[426588842,1782639047000,-190.9702,0.000279,5]
[426588848,1782639047000,-387.53698004,0.00028048,2]
[426588843,1782639047000,-215.86616403,0.000279,3]
[426588846,1782639047000,-151.0,0.000279,7]
[426588849,1782639047000,-2971.42833286,0.00028068,2]
[426588851,1782639047000,-312.9328886,0.00029,2]
[426588850,1782639047000,-505.3828,0.000286,3]
[426588803,1782639047000,-500.0,0.00026099,2]
[426588836,1782639047000,-244.05216984,0.00027899,2]
[426588827,1782639047000,-151.0,0.00026204,2]
[426588832,1782639047000,-343.79246181,0.00027052,2]
[426588826,1782639047000,-151.0,0.00026204,2]
[426588804,1782639047000,-500.0,0.00026099,2]
[426588805,1782639047000,-500.0,0.00026099,2]
[426588808,1782639047000,-500.0,0.00026099,2]
[426588811,1782639047000,-151.0,0.00026099,2]
[426588809,1782639047000,-151.0,0.00026099,2]
[426588834,1782639047000,-1618.17314803,0.00027679,2]
[426588810,1782639047000,-151.0,0.00026099,2]
[426588813,1782639047000,-151.0,0.00026099,2]
[426588815,1782639047000,-151.0,0.00026099,2]
[426588816,1782639047000,-151.0,0.00026099,2]
[426588814,1782639047000,-151.0,0.00026099,2]
[426588807,1782639047000,-500.0,0.00026099,2]
[426588819,1782639047000,-454.2779,0.000261,3]
[426588818,1782639047000,-1408.06,0.000261,2]
[426588825,1782639047000,-2021.57532353,0.00026203,2]
[426588821,1782639047000,-433.939,0.00026126,2]
[426588823,1782639047000,-500.0,0.00026199,2]
[426588824,1782639047000,-435.96502342,0.00026202,2]
[426588852,1782639047000,-85846.92519761,0.0002908,2]
[426588820,1782639047000,-269.65207602,0.00026126,12]
[426588822,1782639047000,-186.0,0.00026126,2]
[426588828,1782639047000,-151.0,0.00026204,2]
[426588817,1782639047000,-1408.069,0.000261,2]
[426588854,1782639279000,2036.0,0.00030137,30]
[426588855,1782639381000,160.0,0.00029165,30]
[426588859,1782639586000,2120.68507569,0.00021122,30]
[426589019,1782640193000,179.37095203,0.0001,23]
[426589067,1782640232000,-601.66746911,0.0002481,2]
[426589059,1782640232000,-332.52,0.00021123,2]
[426589051,1782640232000,-332.52,0.00019111,2]
[426589053,1782640232000,-161.85,0.00020116,2]
[426589057,1782640232000,-186.0,0.00020117,2]
[426589055,1782640232000,-332.52,0.00020117,2]
[426589063,1782640232000,-186.0,0.00023117,2]
[426589065,1782640232000,-1849.785188,0.0002481,2]
[426589074,1782640232000,-310.87610175,0.00026099,2]
[426589061,1782640232000,-2033.0,0.00023,2]
[426589078,1782640232000,-772.11666524,0.00026099,2]
[426589080,1782640232000,-425.78054188,0.00026099,2]
[426589070,1782640232000,-225.29932199,0.0002481,2]
[426589084,1782640232000,-287.15076007,0.00026099,2]
[426589082,1782640232000,-176.19397571,0.00026099,2]
[426589086,1782640232000,-186.0,0.00026117,2]
[426589088,1782640232000,-317.14915627,0.00026462,2]
[426589090,1782640232000,-516.87136812,0.0002728,2]
[426589094,1782640232000,-145.88509196,0.0002905,2]
[426589092,1782640232000,-1969.80892756,0.0002905,2]
[426589072,1782640232000,-543.15839119,0.00026099,2]
[426589336,1782640238000,-300.23438303,0.0002905,2]
[426589337,1782640238000,-247.42868215,0.0002905,2]
[426589372,1782640246000,-9139.62628229,0.0002905,2]
[426589378,1782640553000,173.86746615,0.0001,23]
[426589379,1782640645000,475.35013803,0.00029164,30]
[426589380,1782640651000,58576.68768081,7.6e-05,2]
[426589382,1782640651000,11349.761051,7.6e-05,2]
[426589381,1782640651000,3495.96,7.6e-05,2]
[426589443,1782640911000,-151.0,0.00018,2]
[426589571,1782641432000,-326.29978955,0.00018,2]
[426589569,1782641432000,-151.0,0.00017466,2]
[426589567,1782641432000,-153.66621045,0.00016613,14]
[426589627,1782641438000,-186.0,0.00026759,2]
[426589640,1782641438000,-300.0,0.00028207,2]
[426589638,1782641438000,-1435.75380033,0.00028024,2]
[426589636,1782641438000,-1118.47099308,0.00027834,7]
[426589623,1782641438000,-918.88243221,0.00026204,2]
[426589617,1782641438000,-186.0,0.00020759,2]
[426589619,1782641438000,-186.0,0.00023759,2]
[426589615,1782641438000,-330.86,0.00019111,2]
[426589613,1782641438000,-330.86,0.000189,2]
[426589611,1782641438000,-779.8666144,0.00018,2]
[426589621,1782641438000,-563.82072226,0.00026204,2]
[426589643,1782641438000,-270.50055289,0.00029,2]
[426589625,1782641438000,-880.96987853,0.00026623,2]
[426589642,1782641438000,-525.09917712,0.00028208,2]
[426589661,1782641438000,-529.03022678,0.00029049,2]
[426589659,1782641438000,-500.0,0.00029049,2]
[426589656,1782641438000,-425.57858217,0.00029049,2]
[426589654,1782641438000,-503.775607,0.00029049,2]
[426589652,1782641438000,-500.0,0.00029049,2]
[426589658,1782641438000,-500.0,0.00029049,2]
[426589647,1782641438000,-500.0,0.00029049,2]
[426589645,1782641438000,-289.40597389,0.00029049,2]
[426589631,1782641438000,-246.56686068,0.00027039,2]
[426589634,1782641438000,-212.53239606,0.00027075,2]
[426589650,1782641438000,-374.20040685,0.00029049,2]
[426589629,1782641438000,-554.59095333,0.00026771,2]
[426589680,1782641439000,-29539.95604911,0.0002905,2]
[426589678,1782641439000,-78285.51578907,0.0002905,2]
[426589675,1782641439000,-41344.76778721,0.0002905,2]
[426589673,1782641439000,-38496.26728644,0.0002905,2]
[426589671,1782641439000,-464.23646094,0.0002905,2]
[426589667,1782641439000,-439.85090867,0.00029049,2]
[426589669,1782641439000,-1575.84714204,0.0002905,2]
[426589665,1782641439000,-500.0,0.00029049,2]
[426589664,1782641439000,-500.0,0.00029049,2]
[426589732,1782641443000,-809.41807062,0.0002905,2]
[426589774,1782641447000,-7916.15399533,0.0002905,2]